bitfinex/quotes_BTCUSD_20240730
["timestamp","ask_amount","ask_price","bid_price","bid_amount"]
[1722370283336,0.3,65581.0,65562.0,0.01]
[1722370283337,0.3,65581.0,65576.0,0.03051]
[1722370283789,0.3,65581.0,65578.0,0.03051]
[1722370283992,0.3,65581.0,65579.0,0.03816169]
[1722370284203,0.304916,65592.0,65580.0,0.05351]
[1722370284204,0.304931,65589.0,65580.0,0.05351]
[1722370284423,0.3,65599.0,65582.0,0.03051]
[1722370284629,0.13647616,65600.0,65584.0,0.03051]
[1722370284630,0.07534716,65600.0,65584.0,0.03051]
[1722370284836,0.01,65615.0,65591.0,0.01]
[1722370285043,0.07534716,65600.0,65592.0,0.06867169]
[1722370285276,0.07534716,65614.0,65592.0,0.09167169]
[1722370285490,0.05351,65604.0,65595.0,0.03051]
[1722370285701,0.22777016,65607.0,65597.0,0.03051]
[1722370285702,0.152442,65599.0,65597.0,0.03051]
[1722370285906,0.07534716,65600.0,65597.0,0.03051]
[1722370286112,0.152455,65593.0,65592.0,0.023]
[1722370286318,0.152455,65593.0,65592.0,0.05351]
[1722370286319,0.22780216,65593.0,65592.0,0.05351]
[1722370286535,0.3,65604.0,65592.0,0.05351]
[1722370286766,0.07534716,65600.0,65592.0,0.05351]
[1722370286957,0.22778616,65600.0,65592.0,0.05351]
[1722370287167,0.07534716,65593.0,65592.0,0.05351]
[1722370287390,0.07534716,65600.0,65593.0,0.01]
[1722370287623,0.07534716,65607.0,65596.0,0.03051]
[1722370287839,0.07534716,65607.0,65592.0,0.023]
[1722370287840,0.07534716,65614.0,65602.0,0.01]
[1722370288067,0.02531674,65631.0,65607.0,0.01]
[1722370288068,0.152396,65619.0,65607.0,0.01]
[1722370288283,0.12885716,65621.0,65612.0,0.03051]
[1722370288284,0.22775516,65613.0,65612.0,0.03051]
[1722370288486,0.53257216,65613.0,65612.0,0.03051]
[1722370288691,0.53257216,65613.0,65612.0,0.05351]
[1722370289137,0.07534716,65613.0,65612.0,0.05351]
[1722370289361,0.009449,65623.0,65616.0,0.04051]
[1722370289573,0.07534716,65621.0,65616.0,0.04051]
[1722370289776,0.07534716,65621.0,65612.0,0.023]
[1722370289777,0.009449,65623.0,65619.0,0.03051]
[1722370290008,0.062959,65637.0,65619.0,0.03051]
[1722370290009,0.07534716,65627.0,65619.0,0.03051]
[1722370290215,0.45389015,65639.0,65624.0,0.03051]
[1722370290216,0.07534716,65633.0,65624.0,0.03051]
[1722370290421,0.07534716,65633.0,65626.0,0.04051]
[1722370290647,0.07534716,65633.0,65627.0,0.023]
[1722370290859,0.07534716,65633.0,65628.0,0.0320642]
[1722370290860,0.152371,65629.0,65628.0,0.0320642]
[1722370291068,0.457114,65629.0,65628.0,0.0550642]
[1722370291574,0.761857,65629.0,65628.0,0.03051]
[1722370291781,0.761857,65629.0,65609.0,0.03051]
[1722370291782,0.457246,65610.0,65609.0,0.03051]
[1722370292005,0.22776216,65610.0,65609.0,0.03051]
[1722370292224,0.83742416,65610.0,65609.0,0.03051]
[1722370292429,0.83742416,65610.0,65581.0,0.15063304]
[1722370292430,0.01,65586.0,65581.0,0.15063304]
[1722370292632,0.01,65586.0,65547.0,0.16534091]
[1722370292633,0.01,65589.0,65583.0,0.03051]
[1722370292844,0.07534716,65595.0,65570.0,0.03051]
[1722370292845,0.01,65582.0,65570.0,0.03051]
[1722370293064,0.07534716,65602.0,65574.0,0.19061]
[1722370293065,0.002,65599.0,65574.0,0.19061]
[1722370293311,0.002,65603.0,65576.0,0.20061]
[1722370293562,0.07534716,65602.0,65578.0,0.19061]
[1722370293792,0.002,65606.0,65582.0,0.19061]
[1722370294003,0.002,65610.0,65584.0,0.43295304]
[1722370294208,0.002,65610.0,65585.0,0.03392282]
[1722370294431,0.44444115,65614.0,65596.0,0.03051]
[1722370294614,0.44444115,65614.0,65598.0,0.03051]
[1722370294821,0.002,65619.0,65600.0,0.03051]
[1722370295021,0.002,65619.0,65602.0,0.03051]
[1722370295224,0.07534716,65623.0,65604.0,0.03051]
[1722370295432,0.14348469,65631.0,65606.0,0.03051]
[1722370295632,0.07534716,65615.0,65608.0,0.03051]
[1722370295846,0.152413,65611.0,65610.0,0.03051]
[1722370296047,0.762065,65611.0,65610.0,0.03051]
[1722370296458,0.304813,65614.0,65610.0,0.03051]
[1722370296663,0.07534716,65622.0,65610.0,0.03051]
[1722370296908,0.14371694,65621.0,65611.0,0.0320642]
[1722370297120,0.22773616,65622.0,65611.0,0.03051]
[1722370297321,0.152388,65622.0,65611.0,0.03051]
[1722370297538,0.07534716,65625.0,65611.0,0.03051]
[1722370297744,0.07534716,65625.0,65596.0,0.1601]
[1722370297745,0.07534716,65625.0,65613.0,0.03051]
[1722370297971,0.07534716,65625.0,65615.0,0.03051]
[1722370298187,0.07534716,65625.0,65617.0,0.03051]
[1722370298397,0.07534716,65618.0,65617.0,0.03051]
[1722370298601,0.07534716,65618.0,65617.0,0.05351]
[1722370299009,0.52324849,65625.0,65617.0,0.05351]
[1722370299010,0.07534716,65625.0,65617.0,0.05351]
[1722370299252,0.304734,65631.0,65607.0,0.03051]
[1722370299478,0.304714,65636.0,65609.0,0.03051]
[1722370299687,0.44444115,65637.0,65611.0,0.03051]
[1722370299893,0.009449,65639.0,65613.0,0.03051]
[1722370300113,0.44444115,65638.0,65616.0,0.0907]
[1722370300321,0.009449,65639.0,65617.0,0.20414304]
[1722370300523,0.009449,65639.0,65619.0,0.03051]
[1722370300728,0.009449,65639.0,65621.0,0.03051]
[1722370300938,0.009449,65639.0,65624.0,0.0907]
[1722370301141,0.009449,65639.0,65625.0,0.20569724]
[1722370301633,0.009449,65639.0,65627.0,0.03051]
[1722370301875,0.00091301,65633.0,65631.0,0.03051]
[1722370302128,0.00091301,65633.0,65632.0,0.30858276]
[1722370302331,0.304626,65655.0,65632.0,0.30858276]
[1722370302332,0.00092401,65657.0,65632.0,0.3417068]
[1722370302534,0.00092401,65657.0,65634.0,0.03051]
[1722370302739,0.00092401,65657.0,65636.0,0.03051]
[1722370302955,0.00092401,65657.0,65638.0,0.03051]
[1722370302956,0.304619,65656.0,65638.0,0.03051]
[1722370303160,0.00092401,65657.0,65640.0,0.03051]
[1722370303313,0.07534716,65652.0,65641.0,0.0015542]
[1722370303523,0.22766616,65652.0,65641.0,0.0015542]
[1722370303717,0.07534716,65652.0,65640.0,0.03051]
[1722370304279,0.00092401,65657.0,65641.0,0.0015542]
[1722370304482,0.15323101,65657.0,65643.0,0.03051]
[1722370304659,0.15323101,65657.0,65645.0,0.03051]
[1722370304660,0.30554101,65657.0,65645.0,0.03051]
[1722370304861,0.30554101,65657.0,65644.0,0.0245542]
[1722370304862,0.00092401,65657.0,65647.0,0.03051]
[1722370305132,0.456982,65648.0,65647.0,0.03051]
[1722370305351,0.92154456,65648.0,65647.0,0.03051]
[1722370305572,0.152357,65636.0,65604.0,0.12141]
[1722370305782,0.07534716,65636.0,65626.0,0.03051]
[1722370306053,0.07534716,65636.0,65627.0,0.0015542]
[1722370306054,0.07534716,65629.0,65627.0,0.0015542]
[1722370306223,0.152373,65628.0,65627.0,0.0015542]
[1722370306531,0.07534716,65629.0,65626.0,0.03051]
[1722370306772,0.21732252,65636.0,65627.0,0.03051]
[1722370307024,0.21732252,65636.0,65628.0,0.0015542]
[1722370307025,0.07534716,65636.0,65628.0,0.0015542]
[1722370307297,0.09534716,65643.0,65628.0,0.0015542]
[1722370307508,0.14145305,65642.0,65627.0,0.03051]
[1722370307696,0.07534716,65645.0,65627.0,0.03051]
[1722370307833,0.29373203,65644.0,65628.0,0.03051]
[1722370308030,0.07534716,65638.0,65630.0,0.03051]
[1722370308264,0.07534716,65638.0,65632.0,0.03051]
[1722370308440,0.22769716,65638.0,65632.0,0.03051]
[1722370308640,0.14139503,65644.0,65634.0,0.03051]
[1722370308867,0.07534716,65645.0,65636.0,0.03051]
[1722370309023,0.152342,65642.0,65636.0,0.03051]
[1722370309220,0.152344,65641.0,65638.0,0.03051]
[1722370309647,0.152344,65641.0,65640.0,0.03051]
[1722370309997,0.07534716,65645.0,65640.0,0.05351]
[1722370309998,0.22768216,65645.0,65640.0,0.05351]
[1722370310200,0.04169624,65644.0,65641.0,0.0015542]
[1722370310403,0.04169624,65644.0,65642.0,0.03051]
[1722370310404,0.152339,65643.0,65642.0,0.03051]
[1722370310573,0.49871324,65643.0,65642.0,0.05351]
[1722370310777,0.65935393,65643.0,65642.0,0.05351]
[1722370310980,0.01,65639.0,65619.0,0.00889452]
[1722370311184,0.07534716,65629.0,65620.0,0.03051]
[1722370311385,0.07534716,65622.0,65620.0,0.03051]
[1722370311585,0.07534716,65629.0,65620.0,0.03051]
[1722370311748,0.04124664,65628.0,65620.0,0.03051]
[1722370311943,0.07534716,65629.0,65617.0,0.03051]
[1722370312148,0.04046593,65628.0,65617.0,0.03051]
[1722370312358,0.04046593,65628.0,65619.0,0.03051]
[1722370312560,0.07534716,65644.0,65621.0,0.03051]
[1722370312561,0.44444115,65641.0,65621.0,0.03051]
[1722370312758,0.0404722,65640.0,65623.0,0.03051]
[1722370313215,0.0404722,65639.0,65625.0,0.03051]
[1722370313413,0.02,65653.0,65624.0,0.17712166]
[1722370313414,0.152325,65649.0,65627.0,0.03051]
[1722370313631,0.07534716,65645.0,65629.0,0.03051]
[1722370313812,0.07534716,65645.0,65628.0,0.17363304]
[1722370313813,0.04048794,65644.0,65631.0,0.03051]
[1722370314072,0.04048794,65644.0,65633.0,0.03051]
[1722370314318,0.04048794,65644.0,65634.0,0.0015542]
[1722370314514,0.04048794,65644.0,65635.0,0.03051]
[1722370314771,0.04048794,65644.0,65636.0,0.0015542]
[1722370314939,0.04048794,65644.0,65637.0,0.03051]
[1722370315114,0.04048794,65644.0,65639.0,0.03051]
[1722370315316,0.19282494,65644.0,65640.0,0.0015542]
[1722370315614,0.457025,65642.0,65641.0,0.03051]
[1722370315833,0.71265869,65642.0,65641.0,0.03051]
[1722370316028,0.03992318,65642.0,65641.0,0.03051]
[1722370316496,0.03992318,65642.0,65632.0,0.03051]
[1722370316725,0.00092401,65657.0,65634.0,0.03051]
[1722370316726,0.03992318,65641.0,65634.0,0.03051]
[1722370316937,0.03992318,65640.0,65636.0,0.03051]
[1722370317136,0.03953901,65639.0,65638.0,0.03051]
[1722370317454,0.03953901,65639.0,65638.0,0.05351]
[1722370317674,0.14133264,65657.0,65638.0,0.0550642]
[1722370317675,0.152311,65655.0,65638.0,0.0550642]
[1722370317789,0.03954089,65654.0,65640.0,0.03051]
[1722370317993,0.03954089,65653.0,65640.0,0.03051]
[1722370318246,0.03954089,65652.0,65642.0,0.03051]
[1722370318450,0.03954089,65651.0,65643.0,0.0015542]
[1722370318688,0.03954089,65650.0,65644.0,0.03051]
[1722370318885,0.00092401,65657.0,65645.0,0.0015542]
[1722370319086,0.03914878,65656.0,65646.0,0.03051]
[1722370319287,0.00092401,65657.0,65645.0,0.0245542]
[1722370319288,0.03914878,65655.0,65648.0,0.03051]
[1722370319530,0.03914878,65654.0,65648.0,0.03051]
[1722370319728,0.03914878,65653.0,65650.0,0.03051]
[1722370319937,0.00092401,65657.0,65652.0,0.03051]
[1722370320133,0.03962269,65656.0,65654.0,0.03051]
[1722370320577,0.03962269,65656.0,65655.0,0.05351]
[1722370321111,0.01462269,65656.0,65655.0,0.05351]
[1722370321320,0.00092401,65657.0,65655.0,0.05351]
[1722370321682,0.01462269,65656.0,65655.0,0.05351]
[1722370321944,0.01,65672.0,65655.0,0.05351]
[1722370322125,0.07534716,65666.0,65655.0,0.05351]
[1722370322360,0.07534716,65659.0,65655.0,0.05351]
[1722370322968,0.152307,65657.0,65655.0,0.05351]
[1722370323213,0.59600152,65656.0,65655.0,0.05351]
[1722370323418,0.59600152,65656.0,65647.0,0.00898297]
[1722370323419,0.01,65652.0,65623.0,0.0971]
[1722370323615,0.07534716,65646.0,65631.0,0.00922322]
[1722370323825,0.07534716,65650.0,65631.0,0.15063304]
[1722370324028,0.07534716,65650.0,65623.0,0.1061039]
[1722370324029,0.07534716,65636.0,65623.0,0.1061039]
[1722370324239,0.304683,65642.0,65623.0,0.25673694]
[1722370324444,0.02,65648.0,65624.0,0.18255881]
[1722370324633,0.44444115,65653.0,65625.0,0.1607]
[1722370324841,0.07342665,65652.0,65627.0,0.1607]
[1722370325053,0.07342665,65652.0,65626.0,0.24088627]
[1722370325054,0.07534716,65652.0,65628.0,0.18267914]
[1722370325269,0.32,65664.0,65630.0,0.15063304]
[1722370325465,0.07534716,65658.0,65631.0,0.0336003]
[1722370325676,0.07534716,65658.0,65632.0,0.33433304]
[1722370325891,0.07534716,65651.0,65633.0,0.07890934]
[1722370326100,0.07534716,65658.0,65634.0,0.17363304]
[1722370326312,0.152307,65657.0,65634.0,0.17363304]
[1722370326511,0.152307,65657.0,65635.0,0.04795041]
[1722370326686,0.07534716,65651.0,65636.0,0.17363304]
[1722370327083,0.07534716,65644.0,65637.0,0.04042737]
[1722370327450,0.07534716,65644.0,65630.0,0.0974]
[1722370328056,0.08613512,65643.0,65630.0,0.10662033]
[1722370328261,0.07534716,65637.0,65630.0,0.10662033]
[1722370328465,0.07534716,65637.0,65631.0,0.03753552]
[1722370328674,0.39084106,65636.0,65609.0,0.34337914]
[1722370328937,0.07534716,65627.0,65610.0,0.03738891]
[1722370329144,0.13629061,65626.0,65611.0,0.15063304]
[1722370329352,0.13629061,65625.0,65611.0,0.15063304]
[1722370329620,0.05075133,65624.0,65612.0,0.01919959]
[1722370329824,0.05075133,65623.0,65612.0,0.16983263]
[1722370330039,0.05075133,65622.0,65614.0,0.253]
[1722370330211,0.03145233,65621.0,65615.0,0.31288724]
[1722370330535,0.07534716,65637.0,65615.0,0.18267914]
[1722370330536,0.07534716,65630.0,65615.0,0.18267914]
[1722370330669,0.08543715,65629.0,65615.0,0.18267914]
[1722370330874,0.07534716,65637.0,65615.0,0.18267914]
[1722370330875,0.07534716,65637.0,65616.0,0.03054572]
[1722370331076,0.0854328,65636.0,65617.0,0.17518724]
[1722370331289,0.07534716,65637.0,65617.0,0.17518724]
[1722370331290,0.0854328,65635.0,65617.0,0.17518724]
[1722370331491,0.07534716,65643.0,65618.0,0.24151923]
[1722370331713,0.09267147,65642.0,65619.0,0.49038226]
[1722370331915,0.09267147,65641.0,65621.0,0.0923]
[1722370332146,0.09267147,65640.0,65622.0,0.26715198]
[1722370332291,0.16168518,65649.0,65622.0,0.26715198]
[1722370332524,0.07534716,65644.0,65622.0,0.26715198]
[1722370332720,0.09231681,65643.0,65622.0,0.26715198]
[1722370332893,0.09231681,65643.0,65623.0,0.03717982]
[1722370332894,0.07534716,65635.0,65623.0,0.03717982]
[1722370333078,0.09231681,65634.0,65624.0,0.023]
[1722370333280,0.07534716,65628.0,65621.0,0.0923]
[1722370333509,0.09204562,65627.0,65621.0,0.0923]
[1722370333708,0.09204798,65626.0,65621.0,0.0923]
[1722370333915,0.0920608,65625.0,65621.0,0.0923]
[1722370334119,0.09190139,65624.0,65621.0,0.0923]
[1722370334319,0.09190139,65623.0,65618.0,0.03051]
[1722370334519,0.07534716,65628.0,65614.0,0.03051]
[1722370334520,0.07534716,65620.0,65614.0,0.03051]
[1722370334720,0.09190139,65619.0,65616.0,0.03051]
[1722370334920,0.09190139,65618.0,65616.0,0.03051]
[1722370335121,0.09190139,65617.0,65616.0,0.03051]
[1722370335340,0.02,65626.0,65616.0,0.03051]
[1722370335541,0.09236993,65625.0,65616.0,0.03051]
[1722370335694,0.09236993,65624.0,65616.0,0.03051]
[1722370335906,0.24475493,65623.0,65612.0,0.00083]
[1722370336112,0.09236993,65622.0,65612.0,0.00083]
[1722370336316,0.16313633,65626.0,65612.0,0.00083]
[1722370336317,0.09236993,65621.0,65612.0,0.00083]
[1722370336634,0.09236993,65620.0,65612.0,0.00083]
[1722370336834,0.09236993,65623.0,65612.0,0.00083]
[1722370337037,0.09236993,65622.0,65613.0,0.03051]
[1722370337294,0.09236993,65622.0,65612.0,0.02383]
[1722370337295,0.16771709,65621.0,65615.0,0.03051]
[1722370337634,0.152396,65619.0,65617.0,0.03051]
[1722370337840,0.09236993,65618.0,65617.0,0.03051]
[1722370338042,0.24476393,65620.0,65617.0,0.05351]
[1722370338261,0.07534716,65621.0,65619.0,0.03051]
[1722370338579,0.21136403,65635.0,65619.0,0.03051]
[1722370338580,0.05824264,65620.0,65619.0,0.03051]
[1722370338733,0.21101687,65643.0,65619.0,0.03051]
[1722370338734,0.05824835,65629.0,65619.0,0.18114304]
[1722370338909,0.07534716,65644.0,65621.0,0.03051]
[1722370338910,0.05825673,65628.0,65621.0,0.03051]
[1722370339109,0.05825673,65627.0,65623.0,0.03051]
[1722370339319,0.05825673,65626.0,65625.0,0.03051]
[1722370339520,0.05825673,65626.0,65625.0,0.18114304]
[1722370340167,0.00982713,65626.0,65625.0,0.18114304]
[1722370340371,0.44444115,65650.0,65629.0,0.19121]
[1722370340571,0.44444115,65650.0,65631.0,0.03051]
[1722370340816,0.44444115,65650.0,65633.0,0.03051]
[1722370340931,0.09073614,65655.0,65635.0,0.03051]
[1722370341124,0.09073614,65653.0,65637.0,0.03051]
[1722370341375,0.11342017,65656.0,65639.0,0.03051]
[1722370341376,0.09073614,65656.0,65639.0,0.03051]
[1722370341582,0.1660833,65657.0,65641.0,0.03051]
[1722370341753,0.09073614,65656.0,65641.0,0.03051]
[1722370342187,0.09073614,65653.0,65641.0,0.03051]
[1722370342388,0.09073614,65653.0,65638.0,0.15063304]
[1722370342389,0.09073614,65652.0,65643.0,0.03051]
[1722370342591,0.09073614,65655.0,65645.0,0.03051]
[1722370342798,0.11342017,65657.0,65647.0,0.03051]
[1722370342799,0.09073614,65657.0,65647.0,0.03051]
[1722370343233,0.01,65665.0,65649.0,0.03051]
[1722370343234,0.09073614,65655.0,65649.0,0.03051]
[1722370343436,0.09073614,65655.0,65651.0,0.03051]
[1722370343640,0.09073614,65656.0,65653.0,0.03051]
[1722370343881,0.09073614,65655.0,65653.0,0.03051]
[1722370344088,0.09073614,65654.0,65653.0,0.03051]
[1722370344316,0.08534716,65666.0,65653.0,0.03051]
[1722370344317,0.11342017,65656.0,65653.0,0.05351]
[1722370344526,0.09077944,65654.0,65653.0,0.03051]
[1722370344772,0.09077944,65655.0,65654.0,0.05351]
[1722370344981,0.09077944,65655.0,65654.0,0.03051]
[1722370345197,0.11342017,65656.0,65654.0,0.05351]
[1722370345397,0.07534716,65655.0,65654.0,0.05351]
[1722370346045,0.09086125,65658.0,65654.0,0.05351]
[1722370346257,0.07534716,65666.0,65656.0,0.03051]
[1722370346258,0.09086125,65659.0,65656.0,0.03051]
[1722370346459,0.09085404,65658.0,65656.0,0.03051]
[1722370346687,0.09085404,65657.0,65656.0,0.03051]
[1722370346903,0.0908339,65658.0,65656.0,0.05351]
[1722370347115,0.0908339,65658.0,65656.0,0.03051]
[1722370347343,0.11354238,65659.0,65658.0,0.03051]
[1722370347553,0.11354238,65660.0,65658.0,0.05351]
[1722370347778,0.18888954,65659.0,65658.0,0.05351]
[1722370347992,0.11354238,65659.0,65658.0,0.05351]
[1722370348207,0.07534716,65666.0,65658.0,0.36484304]
[1722370348208,0.11356678,65666.0,65658.0,0.36484304]
[1722370348412,0.009449,65673.0,65662.0,0.19121]
[1722370348655,0.009449,65673.0,65660.0,0.09171]
[1722370348656,0.04523613,65671.0,65664.0,0.19121]
[1722370348867,0.04523613,65671.0,65667.0,0.1607]
[1722370349090,0.12300479,65687.0,65668.0,0.30569724]
[1722370349302,0.00943801,65687.0,65674.0,0.19121]
[1722370349517,0.00943801,65687.0,65671.0,0.012]
[1722370349518,0.0802,65715.0,65681.0,0.15063304]
[1722370349728,0.07534716,65703.0,65687.0,0.19121]
[1722370349935,0.07534716,65703.0,65689.0,0.03051]
[1722370350142,0.07534716,65703.0,65690.0,0.0245542]
[1722370350369,0.07534716,65703.0,65691.0,0.03051]
[1722370350576,0.07534716,65703.0,65693.0,0.03051]
[1722370350749,0.07534716,65696.0,65695.0,0.03051]
[1722370351180,0.07534716,65696.0,65695.0,0.05351]
[1722370351393,0.09534716,65696.0,65695.0,0.05351]
[1722370351624,0.0806,65697.0,65695.0,0.05351]
[1722370351847,0.02,65700.0,65695.0,0.05351]
[1722370351848,0.07534716,65696.0,65695.0,0.05351]
[1722370353583,0.07534716,65703.0,65695.0,0.05351]
[1722370353786,0.07534716,65703.0,65697.0,0.03051]
[1722370353989,0.0867,65713.0,65697.0,0.03051]
[1722370353990,0.09534716,65712.0,65697.0,0.03051]
[1722370354204,0.07534716,65712.0,65699.0,0.03051]
[1722370354623,0.07534716,65712.0,65701.0,0.03051]
[1722370354835,0.07534716,65712.0,65703.0,0.03051]
[1722370355190,0.07534716,65712.0,65705.0,0.03051]
[1722370355390,0.07534716,65712.0,65707.0,0.03051]
[1722370355601,0.07534716,65712.0,65709.0,0.03051]
[1722370355815,0.152182,65711.0,65709.0,0.03051]
[1722370356183,0.07534716,65712.0,65697.0,0.0150633]
[1722370356184,0.16161301,65714.0,65711.0,0.03051]
[1722370356356,0.16161301,65714.0,65713.0,0.03051]
[1722370356545,0.00943801,65714.0,65713.0,0.03051]
[1722370356766,0.00943801,65714.0,65713.0,0.05351]
[1722370357084,0.03808932,65714.0,65713.0,0.05351]
[1722370357436,0.51461232,65714.0,65713.0,0.05351]
[1722370357648,0.48596101,65714.0,65713.0,0.05351]
[1722370357848,0.00943801,65714.0,65713.0,0.05351]
[1722370359409,0.00943801,65714.0,65713.0,0.23750474]
[1722370359610,0.00943801,65714.0,65713.0,0.26125521]
[1722370360053,0.00943801,65718.0,65713.0,0.26125521]
[1722370360298,0.014953,65739.0,65715.0,0.18114304]
[1722370360509,0.009427,65751.0,65715.0,0.18114304]
[1722370360510,0.009427,65751.0,65728.0,0.03051]
[1722370360775,0.009427,65751.0,65730.0,0.03051]
[1722370360969,0.07534716,65749.0,65731.0,0.0015542]
[1722370361178,0.009427,65751.0,65732.0,0.06190238]
[1722370361384,0.009427,65751.0,65733.0,0.0442554]
[1722370361593,0.009427,65751.0,65734.0,0.0335519]
[1722370361738,0.009427,65751.0,65737.0,0.18971]
[1722370361944,0.009427,65751.0,65735.0,0.0932642]
[1722370361945,0.009427,65751.0,65740.0,0.02751]
[1722370362143,0.009427,65751.0,65742.0,0.02751]
[1722370362144,0.00923278,65751.0,65742.0,0.02751]
[1722370362342,0.00923278,65751.0,65744.0,0.02751]
[1722370362575,0.00923278,65751.0,65746.0,0.02751]
[1722370362771,0.00923278,65751.0,65748.0,0.02751]
[1722370362968,0.00923278,65751.0,65750.0,0.02751]
[1722370363173,0.00923278,65751.0,65750.0,0.05051]
[1722370363834,0.01923278,65751.0,65750.0,0.02751]
[1722370364031,0.75272698,65751.0,65750.0,0.02751]
[1722370364639,1.13225114,65751.0,65750.0,0.02751]
[1722370364864,0.67598614,65751.0,65750.0,0.02751]
[1722370365065,1.13225114,65751.0,65750.0,0.02751]
[1722370365467,0.15833278,65751.0,65750.0,0.02751]
[1722370365671,0.00923278,65751.0,65750.0,0.02751]
[1722370365875,0.00923278,65751.0,65734.0,0.00929945]
[1722370365876,0.00923278,65751.0,65735.0,0.0290642]
[1722370366076,0.00923278,65751.0,65750.0,0.02751]
[1722370366455,0.00923278,65751.0,65750.0,0.05051]
[1722370367256,0.00923278,65751.0,65750.0,0.19614304]
[1722370367401,0.00923278,65751.0,65750.0,0.35684304]
[1722370367578,0.00923278,65751.0,65750.0,0.43355296]
[1722370367847,0.00923278,65751.0,65750.0,0.48607926]
[1722370368684,0.00923278,65751.0,65750.0,0.58607926]
[1722370368948,0.00923278,65751.0,65750.0,0.42537926]
[1722370369669,0.00923278,65751.0,65750.0,0.27285296]
[1722370369904,0.00923278,65751.0,65750.0,0.09921992]
[1722370370317,0.00923278,65751.0,65750.0,0.06095733]
[1722370370318,0.16132078,65751.0,65750.0,0.06095733]
[1722370370517,0.60362698,65751.0,65750.0,0.06095733]
[1722370370649,0.60362698,65751.0,65750.0,0.02251]
[1722370370853,1.21198098,65751.0,65750.0,0.02251]
[1722370371723,0.90780398,65751.0,65750.0,0.02251]
[1722370372562,1.21198098,65751.0,65750.0,0.02251]
[1722370372785,0.60362698,65751.0,65750.0,0.02251]
[1722370373420,0.32340978,65751.0,65750.0,0.02251]
[1722370373640,0.77967478,65751.0,65750.0,0.02251]
[1722370374069,0.90780398,65751.0,65750.0,0.04551]
[1722370374278,0.01,65738.0,65733.0,0.03051]
[1722370374509,0.13736198,65751.0,65695.0,0.45535415]
[1722370374510,0.01,65696.0,65695.0,0.000913]
[1722370374724,0.0776,65698.0,65695.0,0.000913]
[1722370375386,0.0776,65707.0,65695.0,0.000913]
[1722370375796,0.07534716,65724.0,65697.0,0.03051]
[1722370375797,0.01,65713.0,65697.0,0.03051]
[1722370375998,0.0632,65717.0,65696.0,0.23093304]
[1722370375999,0.0632,65717.0,65699.0,0.03051]
[1722370376224,0.0632,65717.0,65701.0,0.03051]
[1722370376431,0.0776,65719.0,65698.0,0.0262356]
[1722370376432,0.0776,65719.0,65703.0,0.03051]
[1722370376650,0.0632,65724.0,65705.0,0.03051]
[1722370376850,0.0632,65724.0,65707.0,0.03051]
[1722370377072,0.07534716,65722.0,65709.0,0.03051]
[1722370377264,0.01,65713.0,65709.0,0.03051]
[1722370377493,0.01,65727.0,65712.0,0.03051]
[1722370377699,0.01,65727.0,65713.0,0.0015542]
[1722370377928,0.0632,65732.0,65714.0,0.03051]
[1722370377929,0.0876,65728.0,65714.0,0.03051]
[1722370378158,0.3,65749.0,65714.0,0.03051]
[1722370378159,0.0732,65740.0,65718.0,0.03051]
[1722370378375,0.01,65746.0,65720.0,0.03051]
[1722370378601,0.01,65744.0,65722.0,0.03051]
[1722370378820,0.01,65746.0,65724.0,0.03051]
[1722370379043,0.01,65744.0,65726.0,0.03051]
[1722370379286,0.01,65746.0,65728.0,0.03051]
[1722370379507,0.01,65746.0,65730.0,0.03051]
[1722370379913,0.01,65746.0,65732.0,0.03051]
[1722370380134,0.01,65746.0,65733.0,0.0245542]
[1722370380351,0.0632,65748.0,65734.0,0.03051]
[1722370380583,0.21,65750.0,65736.0,0.03051]
[1722370380813,0.21,65750.0,65738.0,0.03051]
[1722370380814,0.07534716,65745.0,65738.0,0.03051]
[1722370381235,0.07534716,65745.0,65740.0,0.03051]
[1722370381443,0.07534716,65745.0,65741.0,0.0015542]
[1722370381650,0.21,65750.0,65742.0,0.03051]
[1722370381858,0.21,65750.0,65741.0,0.0245542]
[1722370381859,0.21,65750.0,65744.0,0.03051]
[1722370382090,0.08534716,65745.0,65744.0,0.03051]
[1722370382309,0.01,65740.0,65739.0,0.03051]
[1722370383433,0.529542,65740.0,65739.0,0.03051]
[1722370383640,0.68143949,65740.0,65739.0,0.03051]
[1722370383850,0.01,65732.0,65716.0,0.03051]
[1722370384056,0.08534716,65732.0,65716.0,0.03944176]
[1722370384262,0.08534716,65732.0,65716.0,0.03051]
[1722370384473,0.07534716,65725.0,65716.0,0.03051]
[1722370384897,0.07534716,65725.0,65717.0,0.03051]
[1722370385113,0.0319029,65724.0,65717.0,0.03051]
[1722370385345,0.14119533,65731.0,65717.0,0.03051]
[1722370385563,0.14119533,65731.0,65718.0,0.0015542]
[1722370385564,0.01,65730.0,65718.0,0.0015542]
[1722370385785,0.01,65743.0,65719.0,0.03051]
[1722370386001,0.07534716,65752.0,65721.0,0.19121]
[1722370386002,0.02162123,65742.0,65721.0,0.19121]
[1722370386204,0.01,65746.0,65723.0,0.03051]
[1722370386420,0.01,65746.0,65725.0,0.03051]
[1722370386626,0.02186353,65745.0,65727.0,0.03051]
[1722370386861,0.0626,65749.0,65729.0,0.03051]
[1722370386862,0.02386887,65741.0,65729.0,0.03051]
[1722370387141,0.02386887,65741.0,65731.0,0.03051]
[1722370387366,0.02386887,65741.0,65733.0,0.03051]
[1722370387578,0.02386887,65741.0,65735.0,0.03051]
[1722370387787,0.02386887,65741.0,65737.0,0.03051]
[1722370388000,0.02386887,65741.0,65739.0,0.03051]
[1722370388222,0.02386887,65741.0,65740.0,0.20873905]
[1722370388469,0.02386887,65741.0,65740.0,0.30873905]
[1722370388910,0.2,65750.0,65740.0,0.30718485]
[1722370389124,0.2,65750.0,65742.0,0.03051]
[1722370389333,0.2,65750.0,65744.0,0.03051]
[1722370389558,0.2,65750.0,65746.0,0.03051]
[1722370389848,0.2,65750.0,65748.0,0.03051]
[1722370390063,0.07534716,65749.0,65748.0,0.13051]
[1722370390276,0.2,65750.0,65748.0,0.03051]
[1722370390494,0.2,65750.0,65749.0,0.05351]
[1722370391355,0.22463282,65750.0,65749.0,0.05351]
[1722370391557,0.2,65750.0,65749.0,0.05351]